{"text_format":"1","workbook":"xlsx","n_sheets":15,"sheets":["Lists1","Lists2","A1-Rev","A1.1","A2-Rev","A2.1","A3-Rev","A3.1","A4-Rev","A4.1","A5-Rev","A5.1","Section B1-B3 Rev","Referrals and Partners-Rev","Service Locations-Rev"],"not_rendered":{"charts":0,"images":7,"macros":1,"external_links":2,"defined_names":58,"comments":0,"pivot_tables":0},"unopened":[],"bounds":{"document_bytes":16777216,"sheet_cells":100000,"rows_first":2000,"rows_last":500,"rows_between":2000,"halvings":0,"cell_chars":16384,"cell_head_chars":4096},"cells_cut":0,"cells_raw":0,"read":"whole","date_system":"1900"}

{"sheet":"Lists1","index":0,"n_rows":41,"n_cols":4,"rows_kept":41,"cut":false,"hidden":true,"merged":[]}
["Subrecipients",null,"Module 3 Community","Module 4 Family/Individual"]
["Aspermont Small Business Development Center, Inc.",null,"CNPI1 Employment","FNPI1 Employment"]
["Austin HHS",null,"CNPI2 Education & Cognitive Development","FNPI2 Education and Cognitive Development"]
["Big Bend Community Action Committee, Inc.  ",null,"CNPI3 Income & Asset Building","FNPI3 Income and Asset Building"]
["Brazos Valley Community Action Programs",null,"CNPI4 Housing","FNPI4 Housing"]
["Cameron and Willacy",null,"CNPI5 Health & Social/Behavioral","FNPI5 Health and Social/Behavioral"]
["Central Texas Opportunities, Inc.",null,"CNPI6 Civic Engagement & Community Involvement Goal 2","FNPI6 Civic Engagement and Community Involvement"]
["Combined Community Action, Inc.",null,"CNPI6 Civic Engagement & Community Involvement Goal 3"]
["Community Action Committee of Victoria Texas"]
["Community Action Corporation of South Texas"]
["Community Action Inc. of Central Texas ",null,"CNPI1 Employment","CNPI 1a - CNPI 1h"]
["Community Action Social Services & Education",null,"CNPI2 Education & Cognitive Development","CNPI 2a - CNPI 2o"]
["Community Council of Greater Dallas",null,"CNPI3 Income & Asset Building","CNPI 3a - CNPI 3i"]
["Community Council of South Central Texas, Inc.",null,"CNPI4 Housing","CNPI 4a - CNPI 4i"]
["Community Services of Northeast Texas, Inc. ",null,"CNPI5 Health & Social/Behavioral","CNPI 5a - CNPI 5v"]
["Community Services, Inc.",null,"CNPI6 Civic Engagement & Community Involvement Goal 2","CNPI 6 G2a - CNPI 6 G2c"]
["Concho Valley Community Action Agency  ",null,"CNPI6 Civic Engagement & Community Involvement Goal 3","CNPI 6 G3a - CNPI 6 G3b"]
["Economic Action Committee of The Gulf Coast  ",null,"FNPI1 Employment","FNPI 1a - FNPI 1h, FNPI 1z.1"]
["Economic Opportunities Advancement Corporation of Planning Region XI  ",null,"FNPI2 Education and Cognitive Development","FNPI 2a - FNPI 2j"]
["El Paso Community Action Program, Project BRAVO, Inc.  ",null,"FNPI3 Income and Asset Building","FNPI 3a - FNPI 3h"]
["Fort Worth, City of, Neighborhood Services Department ",null,"FNPI4 Housing","FNPI 4a - FNPI 4h"]
["Galveston County Community Action Council, Inc.",null,"FNPI5 Health and Social/Behavioral","FNPI 5a - FNPI 5i"]
["Greater East Texas Community Action Program",null,"FNPI6 Civic Engagement and Community Involvement","FNPI 6a.1 - FNPI 6a.3"]
["Gulf Coast Community Services Association"]
["Hidalgo County Community Services Agency  "]
["Hill Country Community Action Association, Inc. "]
["Lubbock, City of, Community Development Department "]
["Nueces County Community Action Agency",null,"Section C: Community Strategies List"]
["Panhandle Community Services  ","STR 1","Employment Strategies (STR 1)","STR 1a - STR 1i"]
["Pecos County Community Action Agency","STR 2","Education and Cognitive Development Strategies (STR 2)","STR 2a - STR 2l"]
["Rolling Plains Management Corporation ","STR 3","Infrastructure and Asset Building Strategies (STR 3)","STR 3a - STR 3s"]
["City of San Antonio Department of Human Services","STR 4","Housing Strategies (STR 4)","STR 4a - STR 4j"]
["South Plains Community Action Association, Inc. ","STR 5","Health and Social/Behavioral Strategies (STR 5)","STR 5a - STR 5n"]
["South Texas Development Council","STR 6 G2","Civic Engagement and Community Involvement Strategies- Goal 2 (STR 6)","STR 6 G2a - STR 6 G2k"]
["Southeast Texas Regional Planning Commission","STR 6 G3","Civic Engagement and Community Involvement Strategies — Goal 3 (STR 6)","STR 6 G3a - STR 6 G34e"]
["Texas Neighborhood Services  ","STR 7","Community Support Strategies (STR 7)","STR 7a - STR 7f"]
["Texoma Council of Governments ","STR 8","Emergency Management Strategies (STR 8)",1]
["Tri-County Community Action, Inc."]
["Webb County Community Action Agency  "]
["West Texas Opportunities, Inc. "]
["Williamson-Burnet County Opportunities, Inc."]

{"sheet":"Lists2","index":1,"n_rows":192,"n_cols":9,"rows_kept":192,"cut":false,"hidden":true,"merged":[]}
["Category","Subcategory","CNPI1","CNPI2","CNPI3","CNPI4","CNPI5","CNPI6G2","CNPI6G3"]
["CNPI1 Employment","CNPI1","CNPI 1a Number of jobs created to increase opportunities for people with low incomes in the identified community.","CNPI 2a Number of accessible and affordable early childhood or pre-school education assets or resource added to the identified community. ","CNPI 3a Number of new accessible assets/resources created in the identified community:","CNPI 4a Number of safe and affordable housing units developed in the identified community (e.g. built or set aside units for people with low incomes).","CNPI 5a Number of accessible and affordable physical health assets or resources created in the identified community. ","CNPI 6 G2a Percent increase of donated time to support the CSBG Eligible Entity's delivery of services and/or implementation of strategies to address conditions of poverty in the identified community. ","CNPI 6 G3a  Percent increase of people with low incomes who support the CSBG Eligible Entity's delivery of service and/or implementation of strategies to address conditions of poverty in the identified community. "]
["CNPI2 Education & Cognitive Development","CNPI2","CNPI 1b Number of job opportunities maintained in the identified community.            ","CNPI 2b Number of accredited or licensed affordable child care facilities added in the identified community. ","CNPI 3a.1  Commercial","CNPI 4b Number of safe and affordable housing units maintained  and/or improved through WAP or other rehabilitation efforts in the identified community. ","CNPI 5b Number of accessible and affordable behavioral and mental health assets or resources created in the identified community.  ","CNPI 6 G2b Percent increase of donated resources to support the CSBG Eligible Entity's delivery of services and/or implementation of strategies to address conditions of poverty in the identified community. ","CNPI 6 G3b Percent increase of people with low incomes who acquire and maintain leadership roles with the CSBG Eligible Entity or other organizations within the identified community. "]
["CNPI3 Income & Asset Building","CNPI3","CNPI 1c Number of “living wage ” jobs created in the identified community*.","CNPI 2c Number of new Early Childhood Screenings offered to children (ages 0-5) of families with low-incomes in the identified community. ","CNPI 3a.2  Financial","CNPI 4c Number of shelter beds created in the identified community. ","CNPI 5c Number of public safety assets and resources created in the identified community.   ","CNPI 6 G2c  Percent increase of people participating in public hearings, policy forums, community planning, or other advisory boards related to the CSBG Eligible Entity's delivery of service and/or implementation of strategies to address conditions of poverty in the identified community."]
["CNPI4 Housing","CNPI4","CNPI 1d Number of “living wage”  jobs maintained in the  identified community*. ","CNPI 2d Number of accessible and affordable education assets or resources added for school age children in the identified community.  (e.g., academic, enrichment activities, before/after school care, summer programs)","CNPI 3a.3  Technological/ Communications (e.g. broadband)","CNPI 4d Number of shelter beds maintained in the identified community. ","CNPI 5d Number of accessible and affordable healthy food resources created in the identified community."]
["CNPI5 Health & Social/Behavioral","CNPI5","CNPI 1e Number of jobs created in the identified community with a benefit package. ","CNPI 2e Number of accessible and affordable post secondary education assets or resources added for newly graduating youth in the identified community.  (e.g. college tuition, scholarships, vocational training, etc.) ","CNPI 3a.4  Transportation","CNPI 4e Percent decrease in the rate of homelessness in the identified community. ","CNPI 5e Number of activities designed to improve police and community relations within the identified community."]
["CNPI6 Civic Engagement & Community Involvement Goal 2","CNPI6G2","CNPI 1f Percent decrease of the unemployment rate.","CNPI 2f Number of accessible and affordable basic or secondary education assets or resources added for adults in the identified community.  (e.g. literacy, ESL, ABE/GED, etc.) ","CNPI 3a.5  Recreational (e.g. parks, gardens, libraries)","CNPI 4f Percent decrease in the foreclosure rate in the identified community.","CNPI 5f  Percent decrease in infant mortality rate in the identified community."]
["CNPI6 Civic Engagement & Community Involvement Goal 3","CNPI6G3","CNPI 1g Percent decrease of the youth unemployment rate.","CNPI 2g Percent increase of children in the identified community who are kindergarten ready. ","CNPI 3a.6  Other Public Assets/Physical Improvements","CNPI 4g Percent increase in the rate of home ownership of people with low incomes in the identified community.","CNPI 5g  Percent decrease in childhood obesity rate in the identified community. "]
["FNPI1 Employment","FNPI1","CNPI 1h Percent decrease of the underemployment rate.","CNPI 2h Percent increase of children in the identified community at (or above) the basic reading level.","CNPI 3b  Number of existing assets/resources made accessible to the identified community:","CNPI 4h Percent increase of affordable housing in the identified community.","CNPI 5h  Percent decrease in adult obesity rate in the identified community."]
["FNPI2 Education and Cognitive Development","FNPI2",null,"CNPI 2i Percent increase of children in the identified community at (or above) the basic math level.","CNPI 3b.1   Commercial","CNPI 4i Percent increase of shelter beds in the identified community.","CNPI 5i  Percent increase in child immunization rate in the identified community. "]
["FNPI3 Income and Asset Building","FNPI3",null,"CNPI 2j Percent increase in high school (or high school equivalency) graduation rate in the  identified community.","CNPI 3b.2   Financial",null,"CNPI 5j  Percent decrease in uninsured families in the identified community. "]
["FNPI4 Housing","FNPI4",null,"CNPI 2k Percent increase of the rate of youth in the identified community  who attend post-secondary education.","CNPI 3b.3   Technological/ Communications (e.g. broadband)",null,"CNPI 5k  Percent decrease in the teen pregnancy rate in the identified community."]
["FNPI5 Health and Social/Behavioral","FNPI5",null,"CNPI 2l Percent increase of the rate of youth in the identified community who graduate from post-secondary education. ","CNPI 3b.4   Transportation",null,"CNPI 5l  Percent decrease in unplanned pregnancies in the identified community."]
["FNPI6 Civic Engagement and Community Involvement Indicators","FNPI6",null,"CNPI 2m Percent increase of adults in the identified community who attend post-secondary education. ","CNPI 3c  Recreational (e.g. parks, gardens, libraries)",null,"CNPI 5m  Percent decrease in substance abuse rate in the identified community.(e.g. cigarettes, prescription drugs, narcotics, alcohol). "]
[null,null,null,"CNPI 2n Percent increase of adults in the  identified community who graduate from post-secondary education.","CNPI 3d  Other Public Assets/Physical Improvements",null,"CNPI 5n  Percent decrease in domestic violence rate in the identified community."]
[null,null,null,"CNPI 2o Percent increase in the adult literacy rate in the identified community. ","CNPI 3e Percent decrease of abandoned or neglected buildings in the identified community.",null,"CNPI 5o  Percent decrease in the child abuse rate in the identified community."]
[null,null,null,null,"CNPI 3f Percent decrease in emergency response time measured in minutes in the identified community. (EMT, Police, Fire, etc.).",null,"CNPI 5p  Percent decrease in the child neglect rate in the identified community."]
[null,null,null,null,"CNPI 3g Percent decrease of predatory lenders and/or lending practices in the identified community.",null,"CNPI 5q  Percent decrease in the elder abuse rate in the identified community. "]
[null,null,null,null,"CNPI 3h Percent decrease of environmental threats to households (toxic soil, radon, lead, air quality, quality of drinking water, etc.) in the identified community.",null,"CNPI 5r  Percent decrease in the elder neglect rate in the identified community. "]
[null,null,null,null,"CNPI 3i Percent increase of transportation services in the identified community.",null,"CNPI 5s  Percent decrease in recidivism rate in the identified community."]
[null,null,null,null,null,null,"CNPI 5t  Percent decrease in non-violent crime rate in the identified community."]
["Community","STR",null,null,null,null,"CNPI 5u  Percent decrease in violent crime rate in the identified community."]
["Family","SRV",null,null,null,null,"CNPI 5v  Percent decrease in teens involved with the juvenile court system in the identified community."]
["Community","CNPIs","FNPI1","FNPI2","FNPI3","FNPI4","FNPI5","FNPI6","FNPI7"]
["Family","FNPIs","FNPI 1a The number of unemployed youth who obtained employment to gain skills or income.","FNPI 2a The number of children (0 to 5) who demonstrated improved emergent literacy skills.  ","FNPI 3a The number of individuals who achieved and maintained capacity to meet basic needs for 90 days.","FNPI 4a The number of households experiencing homelessness who obtained safe temporary shelter.","FNPI 5a The number of individuals who demonstrated increased nutrition skills (e.g. cooking, shopping, and growing food). ","FNPI 6a The number of Community Action program participants who increased skills, knowledge, and abilities to enable them to work with Community Action to improve conditions in the community. ","FNPI 7a The number of individuals who achieved one or more outcomes as identified by the National Performance Indicators in various domains."]
[null,null,"FNPI 1b The number of unemployed adults who obtained employment (up to a living wage).","FNPI 2b The number of children (0 to 5) who demonstrated skills for school readiness.   ","FNPI 3b The number of individuals who achieved and maintained capacity to meet basic needs for 180 days.","FNPI 4b The number of households who obtained safe and affordable housing.","FNPI 5b The number of individuals who demonstrated improved physical health and well being."]
[null,null,"FNPI 1c The number of unemployed adults who obtained and maintained employment for at least 90 days (up to a living wage). ","FNPI 2c The number of children and youth who demonstrated improved positive approaches toward learning, including improved attention skills.","FNPI 3c The number of individuals who opened a savings account or IDA.","FNPI 4c The number of households who maintained safe and affordable housing for 90 days.","FNPI 5c The number of individuals who demonstrated improved mental and behavioral health and well being. "]
[null,null,"FNPI 1d The number of unemployed adults who obtained and maintained employment for at least 180 days (up to a living wage).","FNPI 2d  The number of children and youth who are achieving at basic grade level (academic, social, and other school success skills).","FNPI 3d The number of individuals who increased their savings.","FNPI 4d The number of households who maintained safe and affordable housing for 180 days. ","FNPI 5d The number of individuals who improved skills related to the adult role of parents/ caregivers. "]
[null,null,"FNPI 1e The number of unemployed adults who obtained employment (with a living wage or higher).","FNPI 2e The number of parents/caregivers who improved their home environments.   ","FNPI 3e The number of individuals who used their savings to purchase an asset.","FNPI 4e The number of households who avoided eviction.","FNPI 5e The number of parents/caregivers who demonstrated increased sensitivity and responsiveness in their interactions with their children. "]
[null,null,"FNPI 1f The number of unemployed adults who obtained and maintained employment for at least 90 days (with a living wage or higher). ","FNPI 2f The number of adults who demonstrated improved basic education.  ","FNPI 3f The number of individuals who improved their credit scores. ","FNPI 4f The number of households who avoided foreclosure.","FNPI 5f The number of seniors (65+) who maintained an independent living situation."]
[null,null,"FNPI 1g The number of unemployed adults who obtained and maintained employment for at least 180 days (with a living wage or higher). ","FNPI 2g The number of individuals who obtained a high school diploma and/or obtained an equivalency certificate or diploma.  ","FNPI 3g The number of individuals who increased their net worth. ","FNPI 4g The number of households who experienced improved health and safety due to improvements within their home (e.g. reduction or elimination of lead, radon, carbon dioxide and/or fire hazards or electrical issues, etc).","FNPI 5g The number of individuals with disabilities who maintained an independent living situation."]
[null,null,"FNPI 1h The number of employed participants in a career advancement related program who entered or transitioned into a position that provided increased income and/or benefits.","FNPI 2h The number of individuals who obtained a recognized credential, certificate, or degree relating to the achievement of educational or vocational skills.  ","FNPI 3h The number of individuals engaged with the Community Action Agency who report improved financial well being.","FNPI 4h The number of households with improved energy efficiency and/or energy burden reduction in their homes.","FNPI 5h The number of individuals with chronic illness who maintained an independent living situation."]
[null,null,"FNPI 1h.1 Of the above, the number of employed participants who Increased income from employment through wage or salary amount increase.","FNPI 2i The number of individuals who obtained an Associate’s degree.  ",null,null,"FNPI 5i The number of individuals with no recidivating event for six months."]
[null,null,"FNPI 1h.2 Of the above, the number of employed participants who increased income from employment through hours worked increase.","FNPI 2j The number of individuals who obtained a Bachelor’s degree.  "]
[null,null,"FNPI 1h.3 Of the above, the number of employed participants who increased benefits related to employment."]
[null,null,"FNPI 1z.1 The number of unduplicated persons who achieved a household income above 125% transitioning to self sufficiency (Must be State assigned TOP goal or higher)"]
[]
[]
[]
[null,null,"SRV 1 Employment Services","STR 1 Employment Strategies","Employment Indicators (FNPI 1)","Counts of Change for Employment Indicators (CNPI 1)"]
[null,null,"SRV 1a","STR 1a","FNPI 1a","CNPI 1a"]
[null,null,"SRV 1b","STR 1b","FNPI 1b","CNPI 1b"]
[null,null,"SRV 1c","STR 1c","FNPI 1c","CNPI 1c"]
[null,null,"SRV 1d","STR 1d","FNPI 1d","CNPI 1d"]
[null,null,"SRV 1e","STR 1e","FNPI 1e","CNPI 1e"]
[null,null,"SRV 1f","STR 1f","FNPI 1f","Rates of Change for Employment Indicators  (CNPI 1)"]
[null,null,"SRV 1g","STR 1g","FNPI 1g","CNPI 1f"]
[null,null,"SRV 1h","STR 1h","FNPI 1h","CNPI 1g"]
[null,null,"SRV 1i","STR 1i","FNPI 1h.1","CNPI 1h"]
[null,null,"SRV 1j","STR 2 Education and Cognitive Development Strategies","FNPI 1h.2","Counts of Change for Education and Cognitive Development Indicators (CNPI 2)"]
[null,null,"SRV 1k","STR 2a","FNPI 1h.3","CNPI 2a"]
[null,null,"SRV 1l","STR 2b","FNPI 1z.1","CNPI 2b"]
[null,null,"SRV 1m","STR 2c","Education and Cognitive Development (FNPI 2)","CNPI 2c"]
[null,null,"SRV 1n","STR 2d","FNPI 2a","CNPI 2d"]
[null,null,"SRV 1o","STR 2e","FNPI 2b","CNPI 2e"]
[null,null,"SRV 1p","STR 2f","FNPI 2c","CNPI 2f"]
[null,null,"SRV 1q","STR 2g","FNPI 2c.1","Rates of Change for Education and Cognitive Development Indicators (CNPI 2)"]
[null,null,"SRV 2 Education and Cognitive Development Services","STR 2h","FNPI 2c.2","CNPI 2g"]
[null,null,"SRV 2a","STR 2i","FNPI 2c.3","CNPI 2h"]
[null,null,"SRV 2b","STR 2j","FNPI 2d","CNPI 2i"]
[null,null,"SRV 2c","STR 2k","FNPI 2d.1","CNPI 2j"]
[null,null,"SRV 2d","STR 2l","FNPI 2d.2","CNPI 2k"]
[null,null,"SRV 2e","STR 3 Infrastructure and Asset Building Strategies","FNPI 2d.3","CNPI 2l"]
[null,null,"SRV 2f","STR 3a","FNPI 2e","CNPI 2m"]
[null,null,"SRV 2g","STR 3b","FNPI 2f","CNPI 2n"]
[null,null,"SRV 2h","STR 3c","FNPI 2g","CNPI 2o"]
[null,null,"SRV 2i","STR 3d","FNPI 2h","Counts of Change for Infrastructure and Asset Building Indicators (CNPI 3)"]
[null,null,"SRV 2j","STR 3e","FNPI 2i","CNPI 3a"]
[null,null,"SRV 2k","STR 3f","FNPI 2j","CNPI 3a.1"]
[null,null,"SRV 2l","STR 3g","Income and Asset Building (FNPI 3)","CNPI 3a.2"]
[null,null,"SRV 2m","STR 3h","FNPI 3a","CNPI 3a.3"]
[null,null,"SRV 2n","STR 3i","FNPI 3b","CNPI 3a.4"]
[null,null,"SRV 2o","STR 3j","FNPI 3c","CNPI 3a.5"]
[null,null,"SRV 2p","STR 3k","FNPI 3d","CNPI 3a.6"]
[null,null,"SRV 2q","STR 3l","FNPI 3e","CNPI 3b"]
[null,null,"SRV 2r","STR 3m","FNPI 3e.1","CNPI 3b.1"]
[null,null,"SRV 2s","STR 3n","FNPI 3f","CNPI 3b.2"]
[null,null,"SRV 2t","STR 3o","FNPI 3g","CNPI 3b.3"]
[null,null,"SRV 2u","STR 3p","FNPI 3h","CNPI 3b.4"]
[null,null,"SRV 2v","STR 3q","Housing (FNPI 4)","CNPI 3c"]
[null,null,"SRV 2v","STR 3r","FNPI 4a","CNPI 3d"]
[null,null,"SRV 2x","STR 3s","FNPI 4b","Rates of Change for Infrastructure and Asset Building Indicators (CNPI 3)"]
[null,null,"SRV 2y","STR 4 Housing Strategies","FNPI 4c","CNPI 3e"]
[null,null,"SRV 2z","STR 4a","FNPI 4d","CNPI 3f"]
[null,null,"SRV 2aa","STR 4b","FNPI 4e","CNPI 3g"]
[null,null,"SRV 2bb","STR 4c","FNPI 4f","CNPI 3h"]
[null,null,"SRV 2cc","STR 4d","FNPI 4g","CNPI 3i"]
[null,null,"SRV 3 Income and Asset Building Services","STR 4e","FNPI 4h","Counts of Change for Housing Indicators (CNPI 4)"]
[null,null,"SRV 3a","STR 4f","Health and Social/Behavioral Development (FNPI 5)","CNPI 4a"]
[null,null,"SRV 3b","STR 4g","FNPI 5a","CNPI 4b"]
[null,null,"SRV 3c","STR 4h","FNPI 5b","CNPI 4c"]
[null,null,"SRV 3d","STR 4i","FNPI 5c","CNPI 4d"]
[null,null,"SRV 3e","STR 4j","FNPI 5d","Rates of Change for Housing Indicators (CNPI 4)"]
[null,null,"SRV 3f","STR 5 Health and Social/Behavioral Strategies","FNPI 5e","CNPI 4e"]
[null,null,"SRV 3g","STR 5a","FNPI 5f","CNPI 4f"]
[null,null,"SRV 3h","STR 5b","FNPI 5g","CNPI 4g"]
[null,null,"SRV 3i","STR 5c","FNPI 5h","CNPI 4h"]
[null,null,"SRV 3j","STR 5d","FNPI 5i","CNPI 4i"]
[null,null,"SRV 3k","STR 5e","FNPI 5i.1","Counts of Change for Health and Social/Behavioral Indicators (CNPI 5)"]
[null,null,"SRV 3l","STR 5f","FNPI 5i.2","CNPI 5a"]
[null,null,"SRV 3m","STR 5g","Civic Engagement and Community Involvement Indicators (FNPI 6)","CNPI 5b"]
[null,null,"SRV 3n","STR 5h","FNPI 6a","CNPI 5c"]
[null,null,"SRV 3o","STR 5i","FNPI 6a.1","CNPI 5d"]
[null,null,"SRV 3p","STR 5j","FNPI 6a.2","CNPI 5e"]
[null,null,"SRV 3q","STR 5k","FNPI 6a.3","Rates of Change for Physical Health, Wellbeing, and Development Indicators (CNPI 5)"]
[null,null,"SRV 3r","STR 5l","Outcomes Across Multiple Domains (FNPI 7)","CNPI 5f"]
[null,null,"SRV 4  Housing Services","STR 5m","FNPI 7a","CNPI 5g"]
[null,null,"SRV 4a","STR 5n",null,"CNPI 5h"]
[null,null,"SRV 4b","STR 6 G2 Civic Engagement and Community Involvement Strategies Goal 2",null,"CNPI 5i"]
[null,null,"SRV 4c","STR 6 G2a",null,"CNPI 5j"]
[null,null,"SRV 4d","STR 6 G2b",null,"Rates of Change for Behavioral and Mental health, Emotional Wellbeing, and Development Indicators (CNPI 5)"]
[null,null,"SRV 4e","STR 6 G2c",null,"CNPI 5k"]
[null,null,"SRV 4f","STR 6 G2d",null,"CNPI 5l"]
[null,null,"SRV 4g","STR 6 G2e",null,"CNPI 5m"]
[null,null,"SRV 4h","STR 6 G2f",null,"CNPI 5n"]
[null,null,"SRV 4i","STR 6 G2g",null,"CNPI 5o"]
[null,null,"SRV 4j","STR 6 G2h",null,"CNPI 5p"]
[null,null,"SRV 4k","STR 6 G2i",null,"CNPI 5q"]
[null,null,"SRV 4l","STR 6 G2j",null,"CNPI 5r"]
[null,null,"SRV 4m","STR 6 G2k",null,"Rates of Change for Public Safety Indicators (CNPI 5)"]
[null,null,"SRV 4n","STR 6 G3 Civic Engagement and Community Involvement Strategies — Goal 3",null,"CNPI 5s"]
[null,null,"SRV 4o","STR 6 G3a",null,"CNPI 5t"]
[null,null,"SRV 4p","STR 6 G3b",null,"CNPI 5u"]
[null,null,"SRV 4q","STR 6 G3c",null,"CNPI 5v"]
[null,null,"SRV 4r","STR 6 G3d",null,"Rates of Change for Civic Engagement and Community Involvement Indicators - Goal 2 (CNPI 6)"]
[null,null,"SRV 4s","STR 6 G3e",null,"CNPI 6 G2a"]
[null,null,"SRV 4t","STR 6 G3f",null,"CNPI 6 G2b"]
[null,null,"SRV 5 Health and Social/Behavioral Development Service","STR 6 G3g",null,"CNPI 6 G2c"]
[null,null,"SRV 5a","STR 7 Community Support Strategies",null,"Rates of Change for Civic Engagement and Community Involvement Indicators - Goal 3 (CNPI 6)"]
[null,null,"SRV 5b","STR 7a",null,"CNPI 6 G3a "]
[null,null,"SRV 5c","STR 7b",null,"CNPI 6 G3b"]
[null,null,"SRV 5d","STR 7c"]
[null,null,"SRV 5e","STR 7d"]
[null,null,"SRV 5f","STR 7e"]
[null,null,"SRV 5g","STR 7f"]
[null,null,"SRV 5h","STR 8 Emergency Management Strategies"]
[null,null,"SRV 5i","STR 8a"]
[null,null,"SRV 5j","STR 8b"]
[null,null,"SRV 5k","STR 8c"]
[null,null,"SRV 5l","STR 8d"]
[null,null,"SRV 5m","STR 8e"]
[null,null,"SRV 5n","STR 8f"]
[null,null,"SRV 5o"]
[null,null,"SRV 5p"]
[null,null,"SRV 5q"]
[null,null,"SRV 5r"]
[null,null,"SRV 5s"]
[null,null,"SRV 5t"]
[null,null,"SRV 5u"]
[null,null,"SRV 5v"]
[null,null,"SRV 5w"]
[null,null,"SRV 5x"]
[null,null,"SRV 5y"]
[null,null,"SRV 5z"]
[null,null,"SRV 5aa"]
[null,null,"SRV 5bb"]
[null,null,"SRV 5cc"]
[null,null,"SRV 5dd"]
[null,null,"SRV 5ee"]
[null,null,"SRV 5ff"]
[null,null,"SRV 5gg"]
[null,null,"SRV 5hh"]
[null,null,"SRV 5ii"]
[null,null,"SRV 5jj"]
[null,null,"SRV 5kk"]
[null,null,"SRV 5ll"]
[null,null,"SRV 5mm"]
[null,null,"SRV 5nn"]
[null,null,"SRV 5oo"]
[null,null,"SRV 6 Civic Engagement and Community Involvement Services"]
[null,null,"SRV 6a"]
[null,null,"SRV 6b"]
[null,null,"SRV 6c"]
[null,null,"SRV 6d"]
[null,null,"SRV 6e"]
[null,null,"SRV 6f"]
[null,null,"SRV 7 Services Supporting Multiple Domains"]
[null,null,"SRV 7a"]
[null,null,"SRV 7b"]
[null,null,"SRV 7c"]
[null,null,"SRV 7d"]
[null,null,"SRV 7e"]
[null,null,"SRV 7f"]
[null,null,"SRV 7g"]
[null,null,"SRV 7h"]
[null,null,"SRV 7i"]
[null,null,"SRV 7j"]
[null,null,"SRV 7k"]
[null,null,"SRV 7l"]
[null,null,"SRV 7m"]
[null,null,"SRV 7n"]
[null,null,"SRV 7o"]

{"sheet":"A1-Rev","index":2,"n_rows":27,"n_cols":5,"rows_kept":27,"cut":false,"hidden":false,"merged":[[25,0,25,4],[5,0,6,0],[0,1,0,3],[5,4,6,4],[5,1,6,1],[1,0,1,4],[4,3,4,4]]}
["Subrecipient:"]
["Needs Assessment"]
["Need","Rank","Outcome","Level of Need","Domain"]
[null,1]
[null,null,"Range of NPIs:",{"$f":"VLOOKUP(E4,Lists1!C11:D24,2,FALSE)","v":{"$error":"#N/A"}}]
["Organization Providing Services/Strategies","Method for tracking outcomes?\nYes or No",{"$f":"VLOOKUP(D4,Lists2!A22:B23,2,FALSE)","v":{"$error":"#N/A"}},{"$f":"VLOOKUP(D4,Lists2!A24:B25,2,FALSE)","v":{"$error":"#N/A"}},"County(ies)"]
[null,null,"Service(s) or Strategies Provided","NPIs"]
[]
[]
[]
[]
[]
[]
[]
[]
[]
[]
[]
[]
[]
[]
[]
[]
[]
[]
["Gaps in Services"]
["Narrative of Gaps in Services","County where Gap exists","How will the Subrecipient address the Gaps in Services?","Name the Coordinating Partner","How will the Coordinating Partner address the Gaps in Services?"]

{"sheet":"A1.1","index":3,"n_rows":36,"n_cols":5,"rows_kept":36,"cut":false,"hidden":true,"merged":[[31,0,35,0],[31,3,31,4],[32,3,32,4],[34,3,34,4],[35,3,35,4],[19,2,19,4],[20,0,30,0],[20,3,20,4],[21,3,21,4],[22,3,22,4],[23,3,23,4],[27,3,27,4],[28,3,28,4],[29,3,29,4],[13,0,17,0],[13,3,13,4],[14,3,14,4],[16,3,16,4],[17,3,17,4],[0,1,0,3],[1,2,1,4],[2,0,12,0],[2,3,2,4],[3,3,3,4],[4,3,4,4],[5,3,5,4],[9,3,9,4],[10,3,10,4],[11,3,11,4]]}
["Subrecipient:",{"$f":"'A1-Rev'!B1","v":0}]
["Initiative #1","CIS","Community Initiative Status (CIS) Form "]
["Planning",1,"Initiative Name"]
[null,2,"Initiative Year"]
[null,3,"Problem Identification"]
[null,4,"Goal/Agenda"]
[null,5,"Issue/CSBG Community Domains",null,"CNPI1 Employment"]
[null,6,"Ultimate Expected Outcome",{"$f":"VLOOKUP(E7, Lists2!A2:B15, 2, FALSE)","v":"CNPI1"}]
[null,7,"Identified Community"]
[null,8,"Expected Duration"]
[null,9,"Partnership Type"]
[null,10,"Partners"]
[null,11,"Strategy(ies)",null,{"$f":"VLOOKUP(D13,Lists1!C29:D37,2,FALSE)","v":{"$error":"#N/A"}}]
["Reporting and Achievement of Results",12,"Progress on Outcomes/Indicators"]
[null,13,"Impact of Outcomes"]
[null,14,"Outcomes/Indicators to Report",null,{"$f":"VLOOKUP(E7, Lists1!C9:D24, 2, FALSE)","v":"CNPI 1a - CNPI 1h"}]
[null,15,"Final Status"]
[null,16,"Lessons Learned"]
[]
["Initiative #2","CIS","Community Initiative Status (CIS) Form "]
["Planning",1,"Initiative Name"]
[null,2,"Initiative Year"]
[null,3,"Problem Identification"]
[null,4,"Goal/Agenda"]
[null,5,"Issue/CSBG Community Domains"]
[null,6,"Ultimate Expected Outcome",{"$f":"VLOOKUP(E25, Lists2!A2:B8, 2, FALSE)","v":{"$error":"#N/A"}}]
[null,7,"Identified Community"]
[null,8,"Expected Duration"]
[null,9,"Partnership Type"]
[null,10,"Partners"]
[null,11,"Strategy(ies)",null,{"$f":"VLOOKUP(D31,Lists1!C29:D37,2,FALSE)","v":{"$error":"#N/A"}}]
["Reporting and Achievement of Results",12,"Progress on Outcomes/Indicators"]
[null,13,"Impact of Outcomes"]
[null,14,"Outcomes/Indicators to Report",null,{"$f":"VLOOKUP(E25, Lists1!C9:D24, 2, FALSE)","v":{"$error":"#N/A"}}]
[null,15,"Final Status"]
[null,16,"Lessons Learned"]

{"sheet":"A2-Rev","index":4,"n_rows":27,"n_cols":5,"rows_kept":27,"cut":false,"hidden":false,"merged":[[25,0,25,4],[0,1,0,3],[1,0,1,4],[4,3,4,4],[5,0,6,0],[5,1,6,1],[5,4,6,4]]}
["Subrecipient:",{"$f":"'A1-Rev'!B1","v":0}]
["Needs Assessment"]
["Need","Rank","Outcome","Level of Need","Domain"]
[null,2]
[null,null,"Range of NPIs:",{"$f":"VLOOKUP(E4,Lists1!C11:D24,2,FALSE)","v":{"$error":"#N/A"}}]
["Organization Providing Services/Strategies","Method for tracking outcomes?\nYes or No",{"$f":"VLOOKUP(D4,Lists2!A22:B23,2,FALSE)","v":{"$error":"#N/A"}},{"$f":"VLOOKUP(D4,Lists2!A24:B25,2,FALSE)","v":{"$error":"#N/A"}},"County(ies)"]
[null,null,"Service(s) or Strategies Provided","NPIs"]
[]
[]
[]
[]
[]
[]
[]
[]
[]
[]
[]
[]
[]
[]
[]
[]
[]
[]
["Gaps in Services"]
["Narrative of Gaps in Services","County where Gap exists","How will the Subrecipient address the Gaps in Services?","Name the Coordinating Partner","How will the Coordinating Partner address the Gaps in Services?"]

{"sheet":"A2.1","index":5,"n_rows":36,"n_cols":5,"rows_kept":36,"cut":false,"hidden":true,"merged":[[31,0,35,0],[31,3,31,4],[32,3,32,4],[34,3,34,4],[35,3,35,4],[19,2,19,4],[20,0,30,0],[20,3,20,4],[21,3,21,4],[22,3,22,4],[23,3,23,4],[27,3,27,4],[28,3,28,4],[29,3,29,4],[0,1,0,3],[2,3,2,4],[3,3,3,4],[4,3,4,4],[5,3,5,4],[1,2,1,4],[2,0,12,0],[13,0,17,0],[13,3,13,4],[14,3,14,4],[16,3,16,4],[17,3,17,4],[9,3,9,4],[10,3,10,4],[11,3,11,4]]}
["Subrecipient:",{"$f":"'A1-Rev'!B1","v":0}]
["Initiative #1","CIS","Community Initiative Status (CIS) Form "]
["Planning",1,"Initiative Name"]
[null,2,"Initiative Year"]
[null,3,"Problem Identification"]
[null,4,"Goal/Agenda"]
[null,5,"Issue/CSBG Community Domains"]
[null,6,"Ultimate Expected Outcome",{"$f":"VLOOKUP(E7, Lists2!A2:B15, 2, FALSE)","v":{"$error":"#N/A"}}]
[null,7,"Identified Community"]
[null,8,"Expected Duration"]
[null,9,"Partnership Type"]
[null,10,"Partners"]
[null,11,"Strategy(ies)",null,{"$f":"VLOOKUP(D13,Lists1!C29:D37,2,FALSE)","v":{"$error":"#N/A"}}]
["Reporting and Achievement of Results",12,"Progress on Outcomes/Indicators"]
[null,13,"Impact of Outcomes"]
[null,14,"Outcomes/Indicators to Report",null,{"$f":"VLOOKUP(E7, Lists1!C9:D24, 2, FALSE)","v":{"$error":"#N/A"}}]
[null,15,"Final Status"]
[null,16,"Lessons Learned"]
[]
["Initiative #2","CIS","Community Initiative Status (CIS) Form "]
["Planning",1,"Initiative Name"]
[null,2,"Initiative Year"]
[null,3,"Problem Identification"]
[null,4,"Goal/Agenda"]
[null,5,"Issue/CSBG Community Domains"]
[null,6,"Ultimate Expected Outcome",{"$f":"VLOOKUP(E25, Lists2!A2:B8, 2, FALSE)","v":{"$error":"#N/A"}}]
[null,7,"Identified Community"]
[null,8,"Expected Duration"]
[null,9,"Partnership Type"]
[null,10,"Partners"]
[null,11,"Strategy(ies)",null,{"$f":"VLOOKUP(D31,Lists1!C29:D37,2,FALSE)","v":{"$error":"#N/A"}}]
["Reporting and Achievement of Results",12,"Progress on Outcomes/Indicators"]
[null,13,"Impact of Outcomes"]
[null,14,"Outcomes/Indicators to Report",null,{"$f":"VLOOKUP(E25, Lists1!C9:D24, 2, FALSE)","v":{"$error":"#N/A"}}]
[null,15,"Final Status"]
[null,16,"Lessons Learned"]

{"sheet":"A3-Rev","index":6,"n_rows":27,"n_cols":5,"rows_kept":27,"cut":false,"hidden":false,"merged":[[25,0,25,4],[0,1,0,3],[1,0,1,4],[4,3,4,4],[5,0,6,0],[5,1,6,1],[5,4,6,4]]}
["Subrecipient:",{"$f":"'A1-Rev'!B1","v":0}]
["Needs Assessment"]
["Need","Rank","Outcome","Level of Need","Domain"]
[null,3]
[null,null,"Range of NPIs:",{"$f":"VLOOKUP(E4,Lists1!C11:D24,2,FALSE)","v":{"$error":"#N/A"}}]
["Organization Providing Services/Strategies","Method for tracking outcomes?\nYes or No",{"$f":"VLOOKUP(D4,Lists2!A22:B23,2,FALSE)","v":{"$error":"#N/A"}},{"$f":"VLOOKUP(D4,Lists2!A24:B25,2,FALSE)","v":{"$error":"#N/A"}},"County(ies)"]
[null,null,"Service(s) or Strategies Provided","NPIs"]
[]
[]
[]
[]
[]
[]
[]
[]
[]
[]
[]
[]
[]
[]
[]
[]
[]
[]
["Gaps in Services"]
["Narrative of Gaps in Services","County where Gap exists","How will the Subrecipient address the Gaps in Services?","Name the Coordinating Partner","How will the Coordinating Partner address the Gaps in Services?"]

{"sheet":"A3.1","index":7,"n_rows":36,"n_cols":5,"rows_kept":36,"cut":false,"hidden":true,"merged":[[31,0,35,0],[31,3,31,4],[32,3,32,4],[34,3,34,4],[35,3,35,4],[19,2,19,4],[20,0,30,0],[20,3,20,4],[21,3,21,4],[22,3,22,4],[23,3,23,4],[27,3,27,4],[28,3,28,4],[29,3,29,4],[13,0,17,0],[13,3,13,4],[14,3,14,4],[16,3,16,4],[17,3,17,4],[0,1,0,3],[1,2,1,4],[2,0,12,0],[2,3,2,4],[3,3,3,4],[4,3,4,4],[5,3,5,4],[9,3,9,4],[10,3,10,4],[11,3,11,4]]}
["Subrecipient:",{"$f":"'A1-Rev'!B1","v":0}]
["Initiative #1","CIS","Community Initiative Status (CIS) Form "]
["Planning",1,"Initiative Name"]
[null,2,"Initiative Year"]
[null,3,"Problem Identification"]
[null,4,"Goal/Agenda"]
[null,5,"Issue/CSBG Community Domains"]
[null,6,"Ultimate Expected Outcome",{"$f":"VLOOKUP(E7, Lists2!A2:B15, 2, FALSE)","v":{"$error":"#N/A"}}]
[null,7,"Identified Community"]
[null,8,"Expected Duration"]
[null,9,"Partnership Type"]
[null,10,"Partners"]
[null,11,"Strategy(ies)",null,{"$f":"VLOOKUP(D13,Lists1!C29:D37,2,FALSE)","v":{"$error":"#N/A"}}]
["Reporting and Achievement of Results",12,"Progress on Outcomes/Indicators"]
[null,13,"Impact of Outcomes"]
[null,14,"Outcomes/Indicators to Report",null,{"$f":"VLOOKUP(E7, Lists1!C9:D24, 2, FALSE)","v":{"$error":"#N/A"}}]
[null,15,"Final Status"]
[null,16,"Lessons Learned"]
[]
["Initiative #2","CIS","Community Initiative Status (CIS) Form "]
["Planning",1,"Initiative Name"]
[null,2,"Initiative Year"]
[null,3,"Problem Identification"]
[null,4,"Goal/Agenda"]
[null,5,"Issue/CSBG Community Domains"]
[null,6,"Ultimate Expected Outcome",{"$f":"VLOOKUP(E25, Lists2!A2:B8, 2, FALSE)","v":{"$error":"#N/A"}}]
[null,7,"Identified Community"]
[null,8,"Expected Duration"]
[null,9,"Partnership Type"]
[null,10,"Partners"]
[null,11,"Strategy(ies)",null,{"$f":"VLOOKUP(D31,Lists1!C29:D37,2,FALSE)","v":{"$error":"#N/A"}}]
["Reporting and Achievement of Results",12,"Progress on Outcomes/Indicators"]
[null,13,"Impact of Outcomes"]
[null,14,"Outcomes/Indicators to Report",null,{"$f":"VLOOKUP(E25, Lists1!C9:D24, 2, FALSE)","v":{"$error":"#N/A"}}]
[null,15,"Final Status"]
[null,16,"Lessons Learned"]

{"sheet":"A4-Rev","index":8,"n_rows":27,"n_cols":5,"rows_kept":27,"cut":false,"hidden":false,"merged":[[25,0,25,4],[0,1,0,3],[1,0,1,4],[4,3,4,4],[5,0,6,0],[5,1,6,1],[5,4,6,4]]}
["Subrecipient:",{"$f":"'A1-Rev'!B1","v":0}]
["Needs Assessment"]
["Need","Rank","Outcome","Level of Need","Domain"]
[null,4]
[null,null,"Range of NPIs:",{"$f":"VLOOKUP(E4,Lists1!C11:D24,2,FALSE)","v":{"$error":"#N/A"}}]
["Organization Providing Services/Strategies","Method for tracking outcomes?\nYes or No",{"$f":"VLOOKUP(D4,Lists2!A22:B23,2,FALSE)","v":{"$error":"#N/A"}},{"$f":"VLOOKUP(D4,Lists2!A24:B25,2,FALSE)","v":{"$error":"#N/A"}},"County(ies)"]
[null,null,"Service(s) or Strategies Provided","NPIs"]
[]
[]
[]
[]
[]
[]
[]
[]
[]
[]
[]
[]
[]
[]
[]
[]
[]
[]
["Gaps in Services"]
["Narrative of Gaps in Services","County where Gap exists","How will the Subrecipient address the Gaps in Services?","Name the Coordinating Partner","How will the Coordinating Partner address the Gaps in Services?"]

{"sheet":"A4.1","index":9,"n_rows":36,"n_cols":5,"rows_kept":36,"cut":false,"hidden":true,"merged":[[31,0,35,0],[31,3,31,4],[32,3,32,4],[34,3,34,4],[35,3,35,4],[19,2,19,4],[20,0,30,0],[20,3,20,4],[21,3,21,4],[22,3,22,4],[23,3,23,4],[27,3,27,4],[28,3,28,4],[29,3,29,4],[13,0,17,0],[13,3,13,4],[14,3,14,4],[16,3,16,4],[17,3,17,4],[0,1,0,3],[1,2,1,4],[2,0,12,0],[2,3,2,4],[3,3,3,4],[4,3,4,4],[5,3,5,4],[9,3,9,4],[10,3,10,4],[11,3,11,4]]}
["Subrecipient:",{"$f":"'A1-Rev'!B1","v":0}]
["Initiative #1","CIS","Community Initiative Status (CIS) Form "]
["Planning",1,"Initiative Name"]
[null,2,"Initiative Year"]
[null,3,"Problem Identification"]
[null,4,"Goal/Agenda"]
[null,5,"Issue/CSBG Community Domains"]
[null,6,"Ultimate Expected Outcome",{"$f":"VLOOKUP(E7, Lists2!A2:B15, 2, FALSE)","v":{"$error":"#N/A"}}]
[null,7,"Identified Community"]
[null,8,"Expected Duration"]
[null,9,"Partnership Type"]
[null,10,"Partners"]
[null,11,"Strategy(ies)",null,{"$f":"VLOOKUP(D13,Lists1!C29:D37,2,FALSE)","v":{"$error":"#N/A"}}]
["Reporting and Achievement of Results",12,"Progress on Outcomes/Indicators"]
[null,13,"Impact of Outcomes"]
[null,14,"Outcomes/Indicators to Report",null,{"$f":"VLOOKUP(E7, Lists1!C9:D24, 2, FALSE)","v":{"$error":"#N/A"}}]
[null,15,"Final Status"]
[null,16,"Lessons Learned"]
[]
["Initiative #2","CIS","Community Initiative Status (CIS) Form "]
["Planning",1,"Initiative Name"]
[null,2,"Initiative Year"]
[null,3,"Problem Identification"]
[null,4,"Goal/Agenda"]
[null,5,"Issue/CSBG Community Domains"]
[null,6,"Ultimate Expected Outcome",{"$f":"VLOOKUP(E25, Lists2!A2:B8, 2, FALSE)","v":{"$error":"#N/A"}}]
[null,7,"Identified Community"]
[null,8,"Expected Duration"]
[null,9,"Partnership Type"]
[null,10,"Partners"]
[null,11,"Strategy(ies)",null,{"$f":"VLOOKUP(D31,Lists1!C29:D37,2,FALSE)","v":{"$error":"#N/A"}}]
["Reporting and Achievement of Results",12,"Progress on Outcomes/Indicators"]
[null,13,"Impact of Outcomes"]
[null,14,"Outcomes/Indicators to Report",null,{"$f":"VLOOKUP(E25, Lists1!C9:D24, 2, FALSE)","v":{"$error":"#N/A"}}]
[null,15,"Final Status"]
[null,16,"Lessons Learned"]

{"sheet":"A5-Rev","index":10,"n_rows":27,"n_cols":5,"rows_kept":27,"cut":false,"hidden":false,"merged":[[25,0,25,4],[0,1,0,3],[1,0,1,4],[4,3,4,4],[5,0,6,0],[5,1,6,1],[5,4,6,4]]}
["Subrecipient:",{"$f":"'A1-Rev'!B1","v":0}]
["Needs Assessment"]
["Need","Rank","Outcome","Level of Need","Domain"]
[null,5]
[null,null,"Range of NPIs:",{"$f":"VLOOKUP(E4,Lists1!C11:D24,2,FALSE)","v":{"$error":"#N/A"}}]
["Organization Providing Services/Strategies","Method for tracking outcomes?\nYes or No",{"$f":"VLOOKUP(D4,Lists2!A22:B23,2,FALSE)","v":{"$error":"#N/A"}},{"$f":"VLOOKUP(D4,Lists2!A24:B25,2,FALSE)","v":{"$error":"#N/A"}},"County(ies)"]
[null,null,"Service(s) or Strategies Provided","NPIs"]
[]
[]
[]
[]
[]
[]
[]
[]
[]
[]
[]
[]
[]
[]
[]
[]
[]
[]
["Gaps in Services"]
["Narrative of Gaps in Services","County where Gap exists","How will the Subrecipient address the Gaps in Services?","Name the Coordinating Partner","How will the Coordinating Partner address the Gaps in Services?"]

{"sheet":"A5.1","index":11,"n_rows":36,"n_cols":5,"rows_kept":36,"cut":false,"hidden":true,"merged":[[31,0,35,0],[31,3,31,4],[32,3,32,4],[34,3,34,4],[35,3,35,4],[19,2,19,4],[20,0,30,0],[20,3,20,4],[21,3,21,4],[22,3,22,4],[23,3,23,4],[27,3,27,4],[28,3,28,4],[29,3,29,4],[13,0,17,0],[13,3,13,4],[14,3,14,4],[16,3,16,4],[17,3,17,4],[0,1,0,3],[1,2,1,4],[2,0,12,0],[2,3,2,4],[3,3,3,4],[4,3,4,4],[5,3,5,4],[9,3,9,4],[10,3,10,4],[11,3,11,4]]}
["Subrecipient:",{"$f":"'A1-Rev'!B1","v":0}]
["Initiative #1","CIS","Community Initiative Status (CIS) Form "]
["Planning",1,"Initiative Name"]
[null,2,"Initiative Year"]
[null,3,"Problem Identification"]
[null,4,"Goal/Agenda"]
[null,5,"Issue/CSBG Community Domains"]
[null,6,"Ultimate Expected Outcome",{"$f":"VLOOKUP(E7, Lists2!A2:B15, 2, FALSE)","v":{"$error":"#N/A"}}]
[null,7,"Identified Community"]
[null,8,"Expected Duration"]
[null,9,"Partnership Type"]
[null,10,"Partners"]
[null,11,"Strategy(ies)",null,{"$f":"VLOOKUP(D13,Lists1!C29:D37,2,FALSE)","v":{"$error":"#N/A"}}]
["Reporting and Achievement of Results",12,"Progress on Outcomes/Indicators"]
[null,13,"Impact of Outcomes"]
[null,14,"Outcomes/Indicators to Report",null,{"$f":"VLOOKUP(E7, Lists1!C9:D24, 2, FALSE)","v":{"$error":"#N/A"}}]
[null,15,"Final Status"]
[null,16,"Lessons Learned"]
[]
["Initiative #2","CIS","Community Initiative Status (CIS) Form "]
["Planning",1,"Initiative Name"]
[null,2,"Initiative Year"]
[null,3,"Problem Identification"]
[null,4,"Goal/Agenda"]
[null,5,"Issue/CSBG Community Domains"]
[null,6,"Ultimate Expected Outcome",{"$f":"VLOOKUP(E25, Lists2!A2:B8, 2, FALSE)","v":{"$error":"#N/A"}}]
[null,7,"Identified Community"]
[null,8,"Expected Duration"]
[null,9,"Partnership Type"]
[null,10,"Partners"]
[null,11,"Strategy(ies)",null,{"$f":"VLOOKUP(D31,Lists1!C29:D37,2,FALSE)","v":{"$error":"#N/A"}}]
["Reporting and Achievement of Results",12,"Progress on Outcomes/Indicators"]
[null,13,"Impact of Outcomes"]
[null,14,"Outcomes/Indicators to Report",null,{"$f":"VLOOKUP(E25, Lists1!C9:D24, 2, FALSE)","v":{"$error":"#N/A"}}]
[null,15,"Final Status"]
[null,16,"Lessons Learned"]

{"sheet":"Section B1-B3 Rev","index":12,"n_rows":21,"n_cols":4,"rows_kept":21,"cut":false,"hidden":false,"merged":[[20,0,20,3],[11,0,12,2],[11,3,12,3],[17,0,17,3],[18,0,18,1],[18,2,18,3],[19,0,19,1],[19,2,19,3],[6,0,6,3],[7,0,7,2],[7,3,8,3],[8,0,8,2],[9,0,10,2],[9,3,10,3],[0,1,0,2],[1,0,1,3],[2,0,2,3],[3,0,3,3],[4,0,4,3],[5,0,5,3]]}
["Subrecipient:",{"$f":"'A1-Rev'!B1:D1","v":0}]
["Section B1: Provision of Nutritious Foods and Initiatives"]
["Provision of Nutritious Foods: Describe how the Subrecipient will provide, on an emergency basis, such supplies and services, nutritious foods, and related services, as may be necessary to counteract the conditions of starvation and malnutrition among low-income individuals."]
[]
["Initiatives: Describe the use of CSBG funds to support innovative community and neighborhood-based initiatives related to the purposes of CSBG, which may include fatherhood initiatives and other initiatives with the goal of strengthening families and encouraging effective parenting."]
[]
["Section B2: Case Management Services and Caseload"]
["1. Have all case managers completed the case management training video series through the TDHCA website, or attended case management training?"]
["http://www.tdhca.state.tx.us/community-affairs/csbg/case-management-training-series.htm"]
["2. Do the case managers have appropriate documentation of their case management process in their client files?"]
[]
["3. How often are the case managers evaluated, by supervisors, towards their TOP goals?"]
[]
[]
["Number of Case Managers",null,"Average Household Size"]
["Agency TOP Goal assigned by State",null,"Minimum Number of Clients per Case Manager to TOP",{"$f":"(B16/D15)/B15","v":{"$error":"#DIV/0!"}}]
[]
["Section B3: Referral Organizations"]
["Referral Organizations",null,"Social Service Coalitions"]
["Child Support Offices",null,"Texas Workforce Commission Offices"]
["Combine all four groups into one excel worksheet - template provided in Tab: Referrals"]

{"sheet":"Referrals and Partners-Rev","index":13,"n_rows":1,"n_cols":26,"rows_kept":1,"cut":false,"hidden":false,"merged":[]}
["County Served","Organization Name","Address","City/Town","Zip","Phone","Contact Person","Email","Website","Employment","Job Skills/Training","Education","Income","Housing","Healthcare","Food","Utilities","Child Care","Clothing","Transportation","State Organization","CoC/CRCG","Additional Services Provided","Referral Only","Working  Partnership","MOU/ Contract"]

{"sheet":"Service Locations-Rev","index":14,"n_rows":55,"n_cols":6,"rows_kept":55,"cut":false,"hidden":false,"merged":[[0,1,0,5],[30,0,33,0],[30,1,30,4],[31,1,31,4],[32,1,32,4],[33,1,33,4]]}
["Subrecipient:",{"$f":"'A1-Rev'!B1","v":0}]
["CSBG Service Area County/Zip Code","Number of HH in Poverty by County/Zip Code","% of HH in Poverty","Main Office\n(Yes or No)","Service Center\n(Yes or No)","Outreach\n(Yes or No)"]
[null,null,{"$f":"B3/B55","v":{"$error":"#DIV/0!"}}]
[null,null,{"$f":"B4/B55","v":{"$error":"#DIV/0!"}}]
[null,null,{"$f":"B5/B55","v":{"$error":"#DIV/0!"}}]
[null,null,{"$f":"B6/B55","v":{"$error":"#DIV/0!"}}]
[null,null,{"$f":"B7/B55","v":{"$error":"#DIV/0!"}}]
[null,null,{"$f":"B8/B55","v":{"$error":"#DIV/0!"}}]
[null,null,{"$f":"B9/B55","v":{"$error":"#DIV/0!"}}]
[null,null,{"$f":"B10/B55","v":{"$error":"#DIV/0!"}}]
[null,null,{"$f":"B11/B55","v":{"$error":"#DIV/0!"}}]
[null,null,{"$f":"B12/B55","v":{"$error":"#DIV/0!"}}]
[null,null,{"$f":"B13/B55","v":{"$error":"#DIV/0!"}}]
[null,null,{"$f":"B14/B55","v":{"$error":"#DIV/0!"}}]
[null,null,{"$f":"B15/B55","v":{"$error":"#DIV/0!"}}]
[null,null,{"$f":"B16/B55","v":{"$error":"#DIV/0!"}}]
[null,null,{"$f":"B17/B55","v":{"$error":"#DIV/0!"}}]
[null,null,{"$f":"B18/B55","v":{"$error":"#DIV/0!"}}]
[null,null,{"$f":"B19/B55","v":{"$error":"#DIV/0!"}}]
[null,null,{"$f":"B20/B55","v":{"$error":"#DIV/0!"}}]
[null,null,{"$f":"B21/B55","v":{"$error":"#DIV/0!"}}]
[null,null,{"$f":"B22/B55","v":{"$error":"#DIV/0!"}}]
[null,null,{"$f":"B23/B55","v":{"$error":"#DIV/0!"}}]
[null,null,{"$f":"B24/B55","v":{"$error":"#DIV/0!"}}]
[null,null,{"$f":"B25/B55","v":{"$error":"#DIV/0!"}}]
[null,null,{"$f":"B26/B55","v":{"$error":"#DIV/0!"}}]
[null,null,{"$f":"B27/B55","v":{"$error":"#DIV/0!"}}]
[null,null,{"$f":"B28/B55","v":{"$error":"#DIV/0!"}}]
[null,null,{"$f":"B29/B55","v":{"$error":"#DIV/0!"}}]
[]
["How are services provided to persons that are unable to apply for services in person?","Online Application"]
[null,"Mail Application"]
[null,"Home Visit"]
[null,"Other - explained to client the application is online and \ncan be returned by mail, email or fax."]
[]
[]
[]
[]
[]
[]
[]
[]
[]
[]
[]
[]
[]
[]
[]
[]
[]
[]
[]
[]
[null,{"$f":"SUM(B3:B27)","v":0},null,{"$f":"SUM(#REF!)","v":{"$error":"#REF!"}}]